[Event "58th Akiba Rubinstein C 2022"]
[Site "Polanica-Zdroj"]
[Date "2022.08.18"]
[Round "6.8"]
[White "Zowada, Kazimierz"]
[Black "Wziatek, Marek"]
[Result "1-0"]
[ECO "A43"]
[WhiteElo "2041"]
[BlackElo "1617"]
[Annotator "NA RC"]
[PlyCount "45"]
[EventDate "2022.08.13"]
[EventCountry "POL"]
[SourceTitle "playchess.com"]
[Source "ChessBase"]
[SourceQuality "1"]
[TimeControl "40/5400+30:1800+30"]

1. d4 {[%emt 0:00:30]} Nf6 2. Nf3 c5 {[%emt 0:01:13]} 3. d5 {[%emt 0:01:13]} d6 {[%emt 0:00:14]} 4. Nc3 {[%emt 0:00:53]} g6 {[%emt 0:00:17]} 5. e4 {[%emt 0:00:44]} Bg7 {[%emt 0:00:11]} 6. h3 {[%emt 0:01:16]} O-O {[%emt 0:01:27]} 7. Bf4 {[%emt 0:00:25]} b6 {[%emt 0:03:06]} 8. Qd2 {[%emt 0:02:16]} Re8 {[%emt 0:01:21]} 9. Bb5 {[%emt 0:01:07]} Bd7 {[%emt 0:00:41]} 10. Be2 {[%emt 0:01:50]} b5 11. e5 {[%emt 0:03:29]} b4 {[%emt 0:04:40]} 12. Nd1 Ne4 {[%emt 0:10:00]} 13. Qe3 {[%emt 0:02:02]} dxe5 {[%emt 0:05:35]} 14. Bxe5 {[%emt 0:03:04]} Bxe5 {[%emt 0:03:32]} 15. Nxe5 {[%emt 0:00:15]} f5 {[%emt 0:15:33]} 16. Bf3 {[%emt 0:16:00]} Qc7 17. Qf4 {[%emt 0:10:44]} g5 {[%emt 0:08:34]} 18. Qh2 e6 {[%emt 0:11:28]} 19. Bxe4 {[%emt 0:05:05]} fxe4 {[%emt 0:02:09]} 20. d6 {[%emt 0:05:01]} Qxd6 {[%emt 0:01:37]} 21. Ne3 {[%emt 0:02:03]} Bb5 {[%emt 0:10:49]} 22. Rd1 {[%emt 0:01:15]} Qe7 {[%emt 0:01:07]} 23. h4 {[%emt 0:00:47]} 1-0

[Event "58th Akiba Rubinstein C 2022"]
[Site "Polanica-Zdroj"]
[Date "2022.08.18"]
[Round "6.9"]
[White "Krasowski, Slawomir"]
[Black "Wrzos, Waldemar"]
[Result "1-0"]
[ECO "C57"]
[WhiteElo "1855"]
[BlackElo "1610"]
[Annotator "NA RC"]
[PlyCount "85"]
[EventDate "2022.08.13"]
[EventCountry "POL"]
[SourceTitle "playchess.com"]
[Source "ChessBase"]
[SourceQuality "1"]
[TimeControl "40/5400+30:1800+30"]

1. e4 {[%emt 0:00:04]} e5 {[%emt 0:00:16]} 2. Nf3 {[%emt 0:00:10]} Nc6 {[%emt 0:00:20]} 3. Bc4 {[%emt 0:00:08]} Nf6 {[%emt 0:01:34]} 4. Ng5 {[%emt 0:00:20]} d5 {[%emt 0:00:21]} 5. exd5 {[%emt 0:00:07]} Nxd5 6. d3 {[%emt 0:05:32]} Be7 {[%emt 0:01:50]} 7. Nxf7 {[%emt 0:01:47]} Kxf7 {[%emt 0:00:23]} 8. Qf3+ {[%emt 0:00:13]} Bf6 {[%emt 0:01:05]} 9. Qxd5+ {[%emt 0:01:53]} Qxd5 {[%emt 0:01:22]} 10. Bxd5+ {[%emt 0:00:01]} Be6 {[%emt 0:02:00]} 11. Bxc6 {[%emt 0:01:17]} bxc6 {[%emt 0:00:01]} 12. Nc3 {[%emt 0:00:11]} Bd5 {[%emt 0:02:07]} 13. f3 {[%emt 0:00:24]} Rab8 {[%emt 0:00:38]} 14. Ne4 {[%emt 0:00:35]} Bh4+ {[%emt 0:00:56]} 15. Ke2 {[%emt 0:00:46]} h6 {[%emt 0:00:43]} 16. b3 {[%emt 0:00:21]} Be7 17. c4 {[%emt 0:00:50]} Be6 {[%emt 0:01:44]} 18. Bb2 {[%emt 0:00:17]} Bf6 {[%emt 0:01:20]} 19. Bc3 {[%emt 0:01:35]} Rhd8 {[%emt 0:00:43]} 20. h4 Bf5 21. g4 Bxe4 {[%emt 0:04:09]} 22. fxe4 {[%emt 0:02:16]} Ke6 {[%emt 0:00:18]} 23. Raf1 {[%emt 0:02:24]} Rd7 {[%emt 0:01:49]} 24. Rf5 {[%emt 0:01:07]} g6 {[%emt 0:01:26]} 25. Rf3 {[%emt 0:00:13]} Rbd8 {[%emt 0:01:06]} 26. h5 {[%emt 0:02:50]} gxh5 {[%emt 0:01:46]} 27. Rxh5 {[%emt 0:00:30]} Bg5 {[%emt 0:00:35]} 28. Bd2 {[%emt 0:00:17]} Rg7 {[%emt 0:07:49]} 29. Bxg5 {[%emt 0:00:49]} Rxg5 {[%emt 0:00:29]} 30. Rxh6+ {[%emt 0:00:49]} Ke7 31. Rxc6 {[%emt 0:03:25]} Kd7 {[%emt 0:00:42]} 32. Ra6 {[%emt 0:01:14]} Kc8 {[%emt 0:02:44]} 33. Rxa7 {[%emt 0:00:18]} Kb8 34. Ra5 Rh8 {[%emt 0:03:16]} 35. Kd2 {[%emt 0:01:39]} Rh4 {[%emt 0:02:49]} 36. Rf5 {[%emt 0:00:45]} Rgxg4 {[%emt 0:01:05]} 37. Rfxe5 {[%emt 0:00:24]} Rg7 {[%emt 0:02:05]} 38. Re6 {[%emt 0:02:22]} Rd7 39. Rb5+ {[%emt 0:00:58]} Ka7 {[%emt 0:02:21]} 40. Kc3 {[%emt 0:00:32]} Rh3 {[%emt 0:01:24]} 41. Rd5 {[%emt 0:30:10]} Rxd5 {[%emt 0:31:09]} 42. cxd5 {[%emt 0:00:00]} Kb7 43. d6 1-0

[Event "58th Akiba Rubinstein C 2022"]
[Site "Polanica-Zdroj"]
[Date "2022.08.18"]
[Round "6.10"]
[White "Grubiak, Roman"]
[Black "Uscinski, Marek"]
[Result "1-0"]
[ECO "A80"]
[WhiteElo "1637"]
[BlackElo "1824"]
[Annotator "NA RC"]
[PlyCount "45"]
[EventDate "2022.08.13"]
[EventCountry "POL"]
[SourceTitle "playchess.com"]
[Source "ChessBase"]
[SourceQuality "1"]
[TimeControl "40/5400+30:1800+30"]

1. d4 {[%emt 0:00:46]} f5 {[%emt 0:00:41]} 2. Bg5 {[%emt 0:00:36]} g6 {[%emt 0:02:32]} 3. Nc3 {[%emt 0:00:43]} d5 {[%emt 0:05:53]} 4. h4 {[%emt 0:00:58]} Bg7 {[%emt 0:03:09]} 5. Nf3 {[%emt 0:01:23]} Nc6 {[%emt 0:03:00]} 6. e3 {[%emt 0:02:30]} a6 7. Bf4 {[%emt 0:02:07]} Nf6 {[%emt 0:01:41]} 8. Ne5 {[%emt 0:01:49]} Bd7 {[%emt 0:01:15]} 9. Nxc6 {[%emt 0:00:55]} Bxc6 {[%emt 0:00:46]} 10. Be5 {[%emt 0:00:19]} Qd7 11. Be2 {[%emt 0:07:08]} O-O-O {[%emt 0:04:28]} 12. a4 {[%emt 0:04:59]} Qe6 {[%emt 0:06:00]} 13. b4 {[%emt 0:04:34]} Be8 {[%emt 0:02:33]} 14. Qd2 Rg8 {[%emt 0:02:30]} 15. Rb1 {[%emt 0:09:36]} Nd7 {[%emt 0:01:35]} 16. Bf4 {[%emt 0:11:53]} Nb6 {[%emt 0:02:12]} 17. O-O {[%emt 0:04:40]} h6 {[%emt 0:10:40]} 18. b5 {[%emt 0:05:58]} a5 {[%emt 0:05:30]} 19. Na2 {[%emt 0:00:12]} Nxa4 {[%emt 0:00:33]} 20. Qxa5 {[%emt 0:00:26]} Nb6 {[%emt 0:00:06]} 21. c4 {[%emt 0:03:26]} dxc4 {[%emt 0:05:44]} 22. Bxc4 {[%emt 0:00:51]} Nxc4 23. Qxc7# 1-0

[Event "58th Akiba Rubinstein C 2022"]
[Site "Polanica-Zdroj"]
[Date "2022.08.18"]
[Round "6.11"]
[White "Gregulski, Zbigniew"]
[Black "Chubar, Vladimir"]
[Result "*"]
[ECO "A40"]
[WhiteElo "1591"]
[BlackElo "1809"]
[Annotator "NA RC"]
[PlyCount "128"]
[EventDate "2022.08.13"]
[EventCountry "POL"]
[SourceTitle "playchess.com"]
[Source "ChessBase"]
[SourceQuality "1"]
[TimeControl "40/5400+30:1800+30"]

1. d4 {[%emt 0:00:12]} g6 {[%emt 0:03:52]} 2. c4 {[%emt 0:00:13]} Bg7 {[%emt 0:00:23]} 3. Nc3 {[%emt 0:00:09]} c5 {[%emt 0:02:41]} 4. Nf3 {[%emt 0:01:53]} cxd4 {[%emt 0:01:42]} 5. Nxd4 {[%emt 0:03:19]} Nc6 {[%emt 0:01:11]} 6. Nxc6 {[%emt 0:03:14]} bxc6 {[%emt 0:00:54]} 7. Bd2 {[%emt 0:00:46]} Rb8 {[%emt 0:01:20]} 8. Qc2 d5 {[%emt 0:03:28]} 9. cxd5 {[%emt 0:03:06]} cxd5 {[%emt 0:00:13]} 10. e3 {[%emt 0:00:13]} Nf6 {[%emt 0:01:49]} 11. Bb5+ {[%emt 0:01:50]} Bd7 {[%emt 0:01:47]} 12. Bxd7+ {[%emt 0:00:27]} Qxd7 {[%emt 0:00:28]} 13. O-O {[%emt 0:00:17]} O-O {[%emt 0:01:48]} 14. b3 {[%emt 0:05:24]} Rfc8 {[%emt 0:00:45]} 15. Qd3 {[%emt 0:01:26]} e5 {[%emt 0:05:31]} 16. Rac1 {[%emt 0:02:39]} e4 {[%emt 0:01:44]} 17. Qe2 Ng4 {[%emt 0:06:46]} 18. f3 {[%emt 0:11:32]} exf3 {[%emt 0:03:56]} 19. Qxf3 {[%emt 0:03:02]} d4 {[%emt 0:06:50]} 20. Nd5 {[%emt 0:05:22]} dxe3 {[%emt 0:08:13]} 21. Bxe3 {[%emt 0:02:10]} Nxe3 {[%emt 0:04:56]} 22. Nxe3 {[%emt 0:00:52]} Rxc1 {[%emt 0:01:06]} 23. Rxc1 {[%emt 0:00:45]} Qd2 {[%emt 0:01:02]} 24. Rc2 {[%emt 0:01:35]} Qe1+ {[%emt 0:06:51]} 25. Nf1 Rd8 {[%emt 0:04:06]} 26. g3 {[%emt 0:01:13]} h5 {[%emt 0:01:33]} 27. Kg2 {[%emt 0:03:45]} Re8 {[%emt 0:02:57]} 28. Rf2 {[%emt 0:09:40]} Qe6 29. Rd2 {[%emt 0:01:24]} Bh6 {[%emt 0:05:48]} 30. Rc2 {[%emt 0:01:14]} Qe1 {[%emt 0:01:56]} 31. Rf2 {[%emt 0:02:51]} Re7 {[%emt 0:01:24]} 32. Rc2 {[%emt 0:01:08]} Bg7 {[%emt 0:01:15]} 33. Rd2 {[%emt 0:01:50]} Kh7 {[%emt 0:02:52]} 34. Qf2 {[%emt 0:01:56]} Qe4+ {[%emt 0:02:12]} 35. Qf3 {[%emt 0:00:28]} Qe5 {[%emt 0:02:10]} 36. Rc2 {[%emt 0:05:29]} Bf6 {[%emt 0:01:45]} 37. Rf2 {[%emt 0:02:36]} Bg5 {[%emt 0:01:37]} 38. Nd2 {[%emt 0:01:28]} Bxd2 {[%emt 0:01:39]} 39. Rxd2 Kg7 {[%emt 0:01:05]} 40. h4 {[%emt 0:00:00]} Rc7 {[%emt 0:00:00]} 41. Re2 {[%emt 0:02:50]} Qa1 {[%emt 0:07:15]} 42. Rf2 {[%emt 0:04:13]} Qe5 {[%emt 0:00:32]} 43. Re2 Qd4 {[%emt 0:00:42]} 44. Rf2 {[%emt 0:03:40]} f5 {[%emt 0:05:33]} 45. Re2 {[%emt 0:01:14]} Rc1 {[%emt 0:02:36]} 46. Rf2 {[%emt 0:05:43]} Ra1 {[%emt 0:03:19]} 47. Qe2 {[%emt 0:03:42]} Qd5+ {[%emt 0:01:52]} 48. Qf3 {[%emt 0:00:53]} Qd4 {[%emt 0:02:16]} 49. Qe2 {[%emt 0:01:08]} Kf7 {[%emt 0:01:41]} 50. Qf3 {[%emt 0:02:11]} Kf6 {[%emt 0:02:13]} 51. Qc6+ {[%emt 0:02:07]} Kg7 {[%emt 0:01:28]} 52. Qb7+ {[%emt 0:00:00]} Kf6 {[%emt 0:00:00]} 53. Qc6+ {[%emt 0:01:00]} Kg7 {[%emt 0:01:00]} 54. Qb7+ {[%emt 0:00:14]} Kh6 {[%emt 0:00:25]} 55. Qf3 {[%emt 0:00:19]} Kg7 {[%emt 0:00:00]} 56. Qe2 {[%emt 0:00:00]} Qd5+ {[%emt 0:00:00]} 57. Qf3 {[%emt 0:00:00]} Qd4 {[%emt 0:00:00]} 58. Qe2 {[%emt 0:00:00]} Kf7 {[%emt 0:00:00]} 59. Qf3 {[%emt 0:00:50]} Kf6 {[%emt 0:01:37]} 60. Qc6+ {[%emt 0:02:07]} Kg7 {[%emt 0:01:28]} 61. Qb7+ {[%emt 0:00:14]} Kh6 {[%emt 0:00:25]} 62. Qf3 {[%emt 0:00:19]} Qc5 {[%emt 0:02:21]} 63. Qf4+ {[%emt 0:00:30]} Kh7 {[%emt 0:00:43]} 64. Qf3 {[%emt 0:00:31]} Qc1 {[%emt 0:00:41]} *

[Event "58th Akiba Rubinstein C 2022"]
[Site "Polanica-Zdroj"]
[Date "2022.08.18"]
[Round "6.12"]
[White "Nisztuk, Michal"]
[Black "Bobrowski, Piotr"]
[Result "1-0"]
[ECO "B06"]
[WhiteElo "1548"]
[BlackElo "1764"]
[Annotator "NA RC"]
[PlyCount "66"]
[EventDate "2022.08.13"]
[EventCountry "POL"]
[SourceTitle "playchess.com"]
[Source "ChessBase"]
[SourceQuality "1"]
[TimeControl "40/5400+30:1800+30"]

1. e4 {[%emt 0:00:03]} g6 {[%emt 0:00:13]} 2. d4 {[%emt 0:00:07]} Bg7 {[%emt 0:00:07]} 3. c4 {[%emt 0:00:25]} e6 {[%emt 0:00:09]} 4. Nf3 {[%emt 0:00:29]} Ne7 {[%emt 0:00:28]} 5. Nc3 {[%emt 0:00:29]} O-O {[%emt 0:00:36]} 6. Be2 {[%emt 0:00:18]} d6 {[%emt 0:01:04]} 7. Bg5 {[%emt 0:00:21]} h6 {[%emt 0:00:18]} 8. Bh4 {[%emt 0:00:57]} Nd7 {[%emt 0:01:36]} 9. O-O {[%emt 0:01:00]} c6 {[%emt 0:00:18]} 10. Qd2 {[%emt 0:00:31]} Re8 {[%emt 0:16:54]} 11. d5 {[%emt 0:00:53]} exd5 {[%emt 0:01:44]} 12. cxd5 {[%emt 0:00:48]} c5 {[%emt 0:00:40]} 13. e5 {[%emt 0:02:56]} Nxe5 {[%emt 0:02:32]} 14. Nxe5 {[%emt 0:00:59]} Bxe5 {[%emt 0:02:11]} 15. Qxh6 {[%emt 0:01:29]} Nf5 {[%emt 0:01:09]} 16. Bxd8 {[%emt 0:03:41]} Nxh6 {[%emt 0:00:02]} 17. Bg5 {[%emt 0:00:50]} Kg7 {[%emt 0:02:34]} 18. Bb5 {[%emt 0:00:44]} Rh8 {[%emt 0:00:28]} 19. Ne4 {[%emt 0:05:34]} Bf5 {[%emt 0:00:49]} 20. f3 {[%emt 0:03:09]} Bxb2 {[%emt 0:04:58]} 21. Rab1 {[%emt 0:02:35]} Be5 {[%emt 0:00:25]} 22. Bd3 {[%emt 0:03:03]} b6 {[%emt 0:03:14]} 23. h3 {[%emt 0:11:43]} f6 {[%emt 0:07:29]} 24. Be3 {[%emt 0:00:30]} Bxe4 {[%emt 0:00:20]} 25. Bxe4 {[%emt 0:01:36]} f5 {[%emt 0:00:29]} 26. f4 {[%emt 0:01:14]} fxe4 {[%emt 0:02:20]} 27. fxe5 {[%emt 0:00:23]} dxe5 {[%emt 0:00:01]} 28. Bg5 {[%emt 0:01:30]} Rhf8 {[%emt 0:00:03]} 29. d6 {[%emt 0:01:39]} Ng8 30. d7 {[%emt 0:03:44]} Nf6 {[%emt 0:06:03]} 31. Rbd1 {[%emt 0:00:42]} Rad8 {[%emt 0:12:49]} 32. Rd6 {[%emt 0:01:12]} e3 {[%emt 0:02:03]} 33. Rfxf6 e2 1-0

[Event "58th Akiba Rubinstein C 2022"]
[Site "Polanica-Zdroj"]
[Date "2022.08.18"]
[Round "6.13"]
[White "Gromada, Andrzej"]
[Black "Stopka, Tomasz"]
[Result "1-0"]
[ECO "A06"]
[WhiteElo "1680"]
[BlackElo "1355"]
[Annotator "NA RC"]
[PlyCount "34"]
[EventDate "2022.08.13"]
[EventCountry "POL"]
[SourceTitle "playchess.com"]
[Source "ChessBase"]
[SourceQuality "1"]
[TimeControl "40/5400+30:1800+30"]

1. Nf3 d5 2. c4 Nf6 3. cxd5 Qxd5 4. Nc3 Qd8 5. d4 Bf5 6. Qb3 Qc8 7. Bf4 a6 8. Rc1 e6 9. g3 Be7 10. Bg2 h6 11. Nh4 c6 12. Nxf5 exf5 13. Na4 Nbd7 14. d5 b5 15. dxc6 bxa4 16. cxd7+ Qxd7 17. Qb6 Rd8 1-0

[Event "58th Akiba Rubinstein C 2022"]
[Site "Polanica-Zdroj"]
[Date "2022.08.18"]
[Round "6.14"]
[White "Janocha, Jan"]
[Black "Michalik, Marek"]
[Result "1/2-1/2"]
[ECO "B02"]
[WhiteElo "1547"]
[BlackElo "1742"]
[Annotator "NA RC"]
[PlyCount "155"]
[EventDate "2022.08.13"]
[EventCountry "POL"]
[SourceTitle "playchess.com"]
[Source "ChessBase"]
[SourceQuality "1"]
[TimeControl "40/5400+30:1800+30"]

1. e4 {[%emt 0:00:17]} Nf6 {[%emt 0:00:07]} 2. Nc3 {[%emt 0:00:16]} d5 {[%emt 0:00:09]} 3. exd5 {[%emt 0:00:29]} Nxd5 {[%emt 0:00:13]} 4. Nf3 {[%emt 0:00:27]} Bg4 {[%emt 0:00:40]} 5. d4 {[%emt 0:01:05]} e6 {[%emt 0:00:23]} 6. Be2 {[%emt 0:01:00]} Bb4 {[%emt 0:01:18]} 7. Bd2 {[%emt 0:02:04]} O-O {[%emt 0:01:28]} 8. O-O {[%emt 0:00:17]} c5 {[%emt 0:06:18]} 9. dxc5 {[%emt 0:02:16]} Bxc5 {[%emt 0:00:21]} 10. Ne4 {[%emt 0:02:03]} Be7 {[%emt 0:02:22]} 11. h3 {[%emt 0:01:54]} Bh5 {[%emt 0:00:52]} 12. c3 {[%emt 0:05:41]} Qb6 13. b3 {[%emt 0:03:48]} Bg6 {[%emt 0:02:19]} 14. Ng3 {[%emt 0:00:18]} Bd6 {[%emt 0:00:32]} 15. Kh1 Rd8 {[%emt 0:05:15]} 16. Qc1 {[%emt 0:03:04]} Nd7 {[%emt 0:01:36]} 17. c4 {[%emt 0:01:53]} Rac8 {[%emt 0:00:41]} 18. Nh4 {[%emt 0:02:39]} Bxg3 {[%emt 0:08:46]} 19. Nxg6 {[%emt 0:00:29]} Bxf2 {[%emt 0:00:37]} 20. Nf4 N7f6 {[%emt 0:04:29]} 21. Bf3 {[%emt 0:05:42]} e5 22. Nxd5 {[%emt 0:10:49]} Nxd5 {[%emt 0:06:22]} 23. Qa3 {[%emt 0:01:14]} Bc5 {[%emt 0:04:31]} 24. Qa5 {[%emt 0:00:22]} Nf6 {[%emt 0:03:10]} 25. Qxb6 {[%emt 0:00:42]} Bxb6 {[%emt 0:00:13]} 26. Bg5 {[%emt 0:00:09]} Rc7 {[%emt 0:01:45]} 27. Bxf6 {[%emt 0:00:18]} gxf6 {[%emt 0:00:12]} 28. Bd5 Rd6 {[%emt 0:04:26]} 29. a4 {[%emt 0:00:48]} Re7 30. b4 {[%emt 0:01:59]} Bd4 {[%emt 0:00:47]} 31. Rad1 {[%emt 0:00:44]} Kf8 {[%emt 0:03:51]} 32. Be4 {[%emt 0:00:18]} h6 {[%emt 0:00:34]} 33. c5 {[%emt 0:00:22]} Rdd7 {[%emt 0:00:59]} 34. c6 {[%emt 0:00:54]} bxc6 {[%emt 0:00:23]} 35. Bxc6 {[%emt 0:00:26]} Rd6 {[%emt 0:00:19]} 36. b5 {[%emt 0:00:31]} e4 {[%emt 0:00:38]} 37. Rde1 {[%emt 0:02:24]} e3 {[%emt 0:00:17]} 38. Re2 {[%emt 0:00:37]} Bb6 {[%emt 0:01:05]} 39. g3 {[%emt 0:02:09]} Rd2 {[%emt 0:01:48]} 40. Bf3 {[%emt 0:00:00]} Rd4 {[%emt 0:00:00]} 41. Ra1 Ba5 {[%emt 0:03:55]} 42. Kg2 {[%emt 0:03:30]} f5 {[%emt 0:01:03]} 43. Ra3 {[%emt 0:00:20]} Bd2 {[%emt 0:02:15]} 44. a5 {[%emt 0:00:21]} Rb4 {[%emt 0:01:01]} 45. Bc6 {[%emt 0:01:28]} Rc4 {[%emt 0:03:12]} 46. a6 {[%emt 0:02:54]} Kg7 {[%emt 0:05:49]} 47. Rd3 {[%emt 0:04:27]} Kf6 {[%emt 0:02:08]} 48. Rd6+ {[%emt 0:01:13]} Kg7 {[%emt 0:01:25]} 49. Bf3 Rcc7 {[%emt 0:03:14]} 50. Bb7 {[%emt 0:03:04]} Ba5 {[%emt 0:01:03]} 51. b6 {[%emt 0:01:04]} Rxb7 {[%emt 0:02:02]} 52. axb7 Rxb7 {[%emt 0:00:15]} 53. bxa7 {[%emt 0:00:24]} Rxa7 {[%emt 0:00:21]} 54. Rxe3 {[%emt 0:00:13]} f6 {[%emt 0:00:55]} 55. Red3 {[%emt 0:00:19]} Kg6 {[%emt 0:01:04]} 56. Ra3 {[%emt 0:00:39]} Bb6 {[%emt 0:00:25]} 57. Rxa7 {[%emt 0:00:03]} Bxa7 {[%emt 0:00:18]} 58. Kf3 {[%emt 0:00:11]} Bb8 {[%emt 0:00:39]} 59. Rd8 {[%emt 0:00:30]} Be5 {[%emt 0:00:19]} 60. g4 {[%emt 0:00:07]} fxg4+ {[%emt 0:00:51]} 61. hxg4 {[%emt 0:01:04]} Bc3 {[%emt 0:00:29]} 62. Rg8+ {[%emt 0:00:52]} Kf7 {[%emt 0:00:16]} 63. Rc8 {[%emt 0:00:06]} Be5 {[%emt 0:00:15]} 64. Ke4 {[%emt 0:00:36]} Kg6 {[%emt 0:00:30]} 65. Re8 {[%emt 0:00:16]} Kf7 {[%emt 0:00:33]} 66. Ra8 {[%emt 0:01:05]} Kg6 {[%emt 0:00:01]} 67. Ra5 {[%emt 0:00:22]} Kg5 {[%emt 0:00:18]} 68. Kf3 {[%emt 0:00:41]} Kg6 {[%emt 0:00:14]} 69. Ra7 {[%emt 0:00:19]} Bd4 {[%emt 0:00:11]} 70. Ra4 {[%emt 0:00:27]} Be5 {[%emt 0:00:03]} 71. Ke4 {[%emt 0:00:33]} Kg5 {[%emt 0:00:22]} 72. Kd5 {[%emt 0:00:02]} Kg6 {[%emt 0:01:27]} 73. Ke6 {[%emt 0:00:10]} h5 {[%emt 0:01:47]} 74. gxh5+ {[%emt 0:00:01]} Kxh5 {[%emt 0:00:16]} 75. Kf5 {[%emt 0:00:11]} Kh6 {[%emt 0:00:55]} 76. Rg4 {[%emt 0:00:37]} Bc3 {[%emt 0:00:48]} 77. Rg6+ {[%emt 0:00:03]} Kh7 {[%emt 0:00:19]} 78. Rxf6 {[%emt 0:01:10]} 1/2-1/2

[Event "58th Akiba Rubinstein C 2022"]
[Site "Polanica-Zdroj"]
[Date "2022.08.19"]
[Round "7.1"]
[White "Kwiecien, Zbigniew"]
[Black "Shilov, Sergej"]
[Result "0-1"]
[ECO "A41"]
[WhiteElo "1937"]
[BlackElo "2048"]
[Annotator "NA RC"]
[PlyCount "84"]
[EventDate "2022.08.13"]
[EventCountry "POL"]
[SourceTitle "playchess.com"]
[Source "ChessBase"]
[SourceQuality "1"]
[TimeControl "40/5400+30:1800+30"]

1. d4 {[%emt 0:00:10]} d6 {[%emt 0:00:39]} 2. c4 {[%emt 0:00:22]} e5 {[%emt 0:00:58]} 3. dxe5 {[%emt 0:00:21]} dxe5 {[%emt 0:00:02]} 4. Qxd8+ {[%emt 0:00:12]} Kxd8 {[%emt 0:00:05]} 5. Nc3 {[%emt 0:03:00]} Be6 {[%emt 0:00:06]} 6. e4 {[%emt 0:00:57]} Nd7 {[%emt 0:05:19]} 7. Be3 {[%emt 0:01:26]} Bb4 {[%emt 0:02:04]} 8. Rc1 {[%emt 0:01:04]} a5 {[%emt 0:00:40]} 9. a3 {[%emt 0:03:28]} Bc5 {[%emt 0:00:11]} 10. Na4 {[%emt 0:02:09]} Bxe3 {[%emt 0:14:24]} 11. fxe3 {[%emt 0:00:04]} Ngf6 {[%emt 0:00:07]} 12. Bd3 {[%emt 0:00:22]} Ke7 {[%emt 0:01:06]} 13. Nf3 {[%emt 0:00:38]} b6 {[%emt 0:03:18]} 14. Ke2 {[%emt 0:05:01]} Rhd8 {[%emt 0:02:30]} 15. Rhd1 {[%emt 0:07:45]} Ne8 {[%emt 0:04:27]} 16. h3 {[%emt 0:01:26]} f6 {[%emt 0:00:29]} 17. g4 {[%emt 0:06:40]} Nc5 {[%emt 0:01:01]} 18. Nxc5 {[%emt 0:01:54]} bxc5 {[%emt 0:00:02]} 19. Rc3 {[%emt 0:03:51]} Rdb8 {[%emt 0:02:39]} 20. b3 {[%emt 0:00:37]} a4 {[%emt 0:00:19]} 21. Nd2 {[%emt 0:01:35]} h5 {[%emt 0:09:00]} 22. gxh5 {[%emt 0:03:02]} Bxh3 {[%emt 0:00:08]} 23. Rg1 {[%emt 0:00:12]} Kf7 {[%emt 0:00:53]} 24. bxa4 {[%emt 0:06:39]} Rxa4 {[%emt 0:01:09]} 25. Bc2 {[%emt 0:00:31]} Ra6 {[%emt 0:01:31]} 26. a4 {[%emt 0:01:45]} Rb2 {[%emt 0:00:43]} 27. Kf3 {[%emt 0:06:10]} Be6 {[%emt 0:01:14]} 28. Nb3 {[%emt 0:01:29]} Rxa4 {[%emt 0:02:40]} 29. Nxc5 {[%emt 0:08:33]} Rxc4 {[%emt 0:00:32]} 30. Rxc4 {[%emt 0:00:28]} Bxc4 {[%emt 0:00:02]} 31. Rc1 {[%emt 0:05:42]} Ke7 {[%emt 0:04:09]} 32. Ba4 {[%emt 0:01:04]} Nd6 {[%emt 0:02:47]} 33. h6 {[%emt 0:01:35]} Be2+ {[%emt 0:01:55]} 34. Kg3 {[%emt 0:00:10]} gxh6 {[%emt 0:00:05]} 35. Rh1 {[%emt 0:01:59]} Bb5 {[%emt 0:05:03]} 36. Rxh6 {[%emt 0:01:31]} Bxa4 {[%emt 0:00:56]} 37. Rh7+ {[%emt 0:01:26]} Kd8 38. Ne6+ {[%emt 0:10:47]} Kc8 {[%emt 0:01:57]} 39. Rxc7+ {[%emt 0:00:08]} Kb8 {[%emt 0:00:05]} 40. Rc1 {[%emt 0:00:00]} Nxe4+ {[%emt 0:00:00]} 41. Kf3 {[%emt 0:01:14]} f5 {[%emt 0:00:51]} 42. Ng7 {[%emt 0:00:07]} Rf2# 0-1

[Event "58th Akiba Rubinstein C 2022"]
[Site "Polanica-Zdroj"]
[Date "2022.08.19"]
[Round "7.2"]
[White "Fikus, Zygmunt"]
[Black "Gromczak, Dariusz"]
[Result "0-1"]
[ECO "A10"]
[WhiteElo "1891"]
[BlackElo "1906"]
[Annotator "NA RC"]
[PlyCount "98"]
[EventDate "2022.08.13"]
[EventCountry "POL"]
[SourceTitle "playchess.com"]
[Source "ChessBase"]
[SourceQuality "1"]
[TimeControl "40/5400+30:1800+30"]

1. c4 {[%emt 0:00:18]} g6 {[%emt 0:00:18]} 2. g3 {[%emt 0:00:11]} Bg7 {[%emt 0:00:20]} 3. Bg2 {[%emt 0:00:06]} e6 {[%emt 0:01:58]} 4. Nc3 {[%emt 0:01:28]} Ne7 {[%emt 0:01:24]} 5. e4 {[%emt 0:00:34]} c5 {[%emt 0:00:41]} 6. d3 {[%emt 0:00:32]} Nbc6 {[%emt 0:00:24]} 7. Be3 {[%emt 0:00:33]} Nd4 {[%emt 0:00:52]} 8. h4 {[%emt 0:02:34]} h5 {[%emt 0:05:28]} 9. f4 {[%emt 0:01:33]} Rb8 {[%emt 0:08:47]} 10. Nf3 {[%emt 0:01:37]} d5 {[%emt 0:15:51]} 11. O-O {[%emt 0:04:41]} Nxf3+ {[%emt 0:00:19]} 12. Qxf3 {[%emt 0:02:41]} d4 {[%emt 0:02:05]} 13. f5 {[%emt 0:00:22]} exf5 {[%emt 0:03:45]} 14. Bf4 {[%emt 0:00:37]} dxc3 {[%emt 0:03:07]} 15. Bxb8 {[%emt 0:00:49]} cxb2 {[%emt 0:05:00]} 16. Rab1 {[%emt 0:00:20]} O-O {[%emt 0:01:36]} 17. Bf4 {[%emt 0:02:04]} fxe4 {[%emt 0:03:13]} 18. dxe4 {[%emt 0:00:03]} Qd4+ {[%emt 0:01:13]} 19. Kh2 {[%emt 0:00:22]} Qxc4 {[%emt 0:03:08]} 20. Bd6 {[%emt 0:01:37]} Re8 {[%emt 0:05:32]} 21. Qa3 {[%emt 0:06:15]} Bd4 {[%emt 0:06:11]} 22. Rxb2 {[%emt 0:00:58]} Bxb2 {[%emt 0:01:13]} 23. Qxb2 {[%emt 0:00:03]} b6 {[%emt 0:01:08]} 24. Qf6 {[%emt 0:02:10]} Qe6 {[%emt 0:03:15]} 25. Qf4 {[%emt 0:00:17]} Nc6 {[%emt 0:01:22]} 26. Rf2 {[%emt 0:06:41]} Nd4 {[%emt 0:03:39]} 27. Kg1 {[%emt 0:02:49]} Qc4 {[%emt 0:04:49]} 28. Bf1 {[%emt 0:00:30]} Qe6 {[%emt 0:01:25]} 29. Bh3 {[%emt 0:00:27]} Ne2+ {[%emt 0:00:34]} 30. Rxe2 {[%emt 0:00:28]} Qxh3 {[%emt 0:00:04]} 31. Rf2 {[%emt 0:00:45]} Qe6 {[%emt 0:00:59]} 32. e5 {[%emt 0:03:48]} Bb7 {[%emt 0:02:07]} 33. Rd2 {[%emt 0:15:12]} Qh3 34. Rh2 {[%emt 0:02:11]} Qe6 {[%emt 0:06:23]} 35. Rd2 {[%emt 0:00:05]} Qh3 {[%emt 0:01:18]} 36. Rh2 {[%emt 0:00:02]} Qd7 {[%emt 0:00:02]} 37. Rd2 {[%emt 0:02:33]} Qc6 {[%emt 0:00:43]} 38. Rh2 {[%emt 0:03:43]} Bc8 {[%emt 0:01:28]} 39. Rf2 {[%emt 0:00:15]} Be6 {[%emt 0:01:24]} 40. Qg5 {[%emt 0:00:00]} Qe4 {[%emt 0:00:00]} 41. Qf4 {[%emt 0:10:04]} Qb1+ {[%emt 0:01:40]} 42. Kh2 {[%emt 0:00:08]} Bd5 {[%emt 0:00:17]} 43. Rf1 {[%emt 0:01:14]} Qxa2+ {[%emt 0:00:20]} 44. Rf2 {[%emt 0:00:15]} Qb1 {[%emt 0:01:08]} 45. Rf1 {[%emt 0:00:17]} Qc2+ {[%emt 0:01:58]} 46. Rf2 {[%emt 0:00:01]} Qd1 {[%emt 0:04:18]} 47. Rf1 {[%emt 0:00:30]} Qd3 {[%emt 0:00:55]} 48. e6 {[%emt 0:01:10]} Qe2+ {[%emt 0:00:28]} 49. Rf2 {[%emt 0:00:07]} Qxe6 {[%emt 0:00:13]} 0-1